{"text_format":"1","workbook":"xlsx","n_sheets":3,"sheets":["Hoja1","Lista Desplegable Validación","Hoja3"],"not_rendered":{"charts":1,"images":1,"macros":1,"external_links":0,"defined_names":6,"comments":0,"pivot_tables":1},"unopened":[],"bounds":{"document_bytes":16777216,"sheet_cells":100000,"rows_first":2000,"rows_last":500,"rows_between":2000,"halvings":0,"cell_chars":16384,"cell_head_chars":4096},"cells_cut":0,"cells_raw":0,"read":"whole","date_system":"1900"}

{"sheet":"Hoja1","index":0,"n_rows":42,"n_cols":21,"rows_kept":42,"cut":false,"hidden":false,"merged":[[1,2,1,4],[2,2,2,4],[3,1,3,2],[9,1,14,4]]}
[]
[null,"Nombre:","Rosa Elena Lares Ortiz"]
[null,"Fecha: ",{"$f":"TODAY()","v":"2025-07-30"}]
[null,"PROYECTO"]
[]
[null,"Especialidad","Grupo","Semestre","Turno"]
[null,"ARH","D",3,"VESP."]
[]
[]
[null,"OBJETIVO DEL PROYECTO:                                                Facilitar el concentrado de calificaciones de un grupo y permitir un rápido análisis de los datos, para considerar las adecuaciones necesarias en las estratégias didácticas que permitan mejorar los resultados.  Así mismo mediante las diferentes opciones de excel  optimizar los tiempos administrativos del docente.",null,null,null,null,"MATRÍCULA","NOMBRE","PARCIAL 1","ASISTENCIAS 1","PARCIAL 2","ASISTENCIAS 2","PARCIAL 3","ASISTENCIAS 3","PROMEDIO","TOTAL ASISTENCIAS","NOTA FINAL","ASISTENCIA",null,"DETALLE DE CALIFICACIONES","Totales"]
[null,null,null,null,null,null,250100,"CENICEROS PÉREZ JACINTO",9,20,8,19,9,20,{"$f":"AVERAGE(Tabla1[[#This Row],[PARCIAL 1]],Tabla1[[#This Row],[PARCIAL 2]],Tabla1[[#This Row],[PARCIAL 3]])","v":8.6666666666666661},{"$f":"SUM(Tabla1[[#This Row],[ASISTENCIAS 1]],Tabla1[[#This Row],[ASISTENCIAS 2]],Tabla1[[#This Row],[ASISTENCIAS 3]])","v":59},{"$f":"IF(Tabla1[[#This Row],[PROMEDIO]]>6,\"APROBADO\",\"REPROBADO\")","v":"APROBADO"},{"$f":"IF(Tabla1[TOTAL ASISTENCIAS]>48,\"REGULAR\",IF(Tabla1[TOTAL ASISTENCIAS]<48,\"RECURSAMIENTO\"))","v":"REGULAR"},null,"Promedio del Curso",{"$f":"AVERAGE(Tabla1[PROMEDIO])","v":7.5333333333333332}]
[null,null,null,null,null,null,250101,"CRUZ LÓPEZ CAMILA",5,14,6,17,5,20,{"$f":"AVERAGE(Tabla1[[#This Row],[PARCIAL 1]],Tabla1[[#This Row],[PARCIAL 2]],Tabla1[[#This Row],[PARCIAL 3]])","v":5.333333333333333},{"$f":"SUM(Tabla1[[#This Row],[ASISTENCIAS 1]],Tabla1[[#This Row],[ASISTENCIAS 2]],Tabla1[[#This Row],[ASISTENCIAS 3]])","v":51},{"$f":"IF(Tabla1[[#This Row],[PROMEDIO]]>6,\"APROBADO\",\"REPROBADO\")","v":"REPROBADO"},{"$f":"IF(Tabla1[TOTAL ASISTENCIAS]>48,\"REGULAR\",IF(Tabla1[TOTAL ASISTENCIAS]<48,\"RECURSAMIENTO\"))","v":"REGULAR"},null,"Total de Alumnos",{"$f":"COUNTA(Tabla1[NOMBRE])","v":15}]
[null,null,null,null,null,null,250102,"DÍAZ FLORES PAOLA",8,20,9,20,9,20,{"$f":"AVERAGE(Tabla1[[#This Row],[PARCIAL 1]],Tabla1[[#This Row],[PARCIAL 2]],Tabla1[[#This Row],[PARCIAL 3]])","v":8.6666666666666661},{"$f":"SUM(Tabla1[[#This Row],[ASISTENCIAS 1]],Tabla1[[#This Row],[ASISTENCIAS 2]],Tabla1[[#This Row],[ASISTENCIAS 3]])","v":60},{"$f":"IF(Tabla1[[#This Row],[PROMEDIO]]>6,\"APROBADO\",\"REPROBADO\")","v":"APROBADO"},{"$f":"IF(Tabla1[TOTAL ASISTENCIAS]>48,\"REGULAR\",IF(Tabla1[TOTAL ASISTENCIAS]<48,\"RECURSAMIENTO\"))","v":"REGULAR"},null,"Aprobados",{"$f":"COUNTIF(Tabla1[NOTA FINAL],\"APROBADO\")","v":11}]
[null,null,null,null,null,null,250103,"GARCÍA IRIGOYEN JOSÉ",6,20,7,18,9,20,{"$f":"AVERAGE(Tabla1[[#This Row],[PARCIAL 1]],Tabla1[[#This Row],[PARCIAL 2]],Tabla1[[#This Row],[PARCIAL 3]])","v":7.333333333333333},{"$f":"SUM(Tabla1[[#This Row],[ASISTENCIAS 1]],Tabla1[[#This Row],[ASISTENCIAS 2]],Tabla1[[#This Row],[ASISTENCIAS 3]])","v":58},{"$f":"IF(Tabla1[[#This Row],[PROMEDIO]]>6,\"APROBADO\",\"REPROBADO\")","v":"APROBADO"},{"$f":"IF(Tabla1[TOTAL ASISTENCIAS]>48,\"REGULAR\",IF(Tabla1[TOTAL ASISTENCIAS]<48,\"RECURSAMIENTO\"))","v":"REGULAR"},null,"Reprobados",{"$f":"COUNTIF(Tabla1[NOTA FINAL],\"REPROBADO\")","v":4}]
[null,null,null,null,null,null,250104,"JIMÉNEZ QUIROGA ROBERTO",7,17,7,20,8,20,{"$f":"AVERAGE(Tabla1[[#This Row],[PARCIAL 1]],Tabla1[[#This Row],[PARCIAL 2]],Tabla1[[#This Row],[PARCIAL 3]])","v":7.333333333333333},{"$f":"SUM(Tabla1[[#This Row],[ASISTENCIAS 1]],Tabla1[[#This Row],[ASISTENCIAS 2]],Tabla1[[#This Row],[ASISTENCIAS 3]])","v":57},{"$f":"IF(Tabla1[[#This Row],[PROMEDIO]]>6,\"APROBADO\",\"REPROBADO\")","v":"APROBADO"},{"$f":"IF(Tabla1[TOTAL ASISTENCIAS]>48,\"REGULAR\",IF(Tabla1[TOTAL ASISTENCIAS]<48,\"RECURSAMIENTO\"))","v":"REGULAR"},null,"Nota más alta",{"$f":"MAX(Tabla1[PROMEDIO])","v":9.3333333333333339}]
[null,null,null,null,null,null,250105,"MENA CABRALES PABLO",5,16,6,16,5,13,{"$f":"AVERAGE(Tabla1[[#This Row],[PARCIAL 1]],Tabla1[[#This Row],[PARCIAL 2]],Tabla1[[#This Row],[PARCIAL 3]])","v":5.333333333333333},{"$f":"SUM(Tabla1[[#This Row],[ASISTENCIAS 1]],Tabla1[[#This Row],[ASISTENCIAS 2]],Tabla1[[#This Row],[ASISTENCIAS 3]])","v":45},{"$f":"IF(Tabla1[[#This Row],[PROMEDIO]]>6,\"APROBADO\",\"REPROBADO\")","v":"REPROBADO"},{"$f":"IF(Tabla1[TOTAL ASISTENCIAS]>48,\"REGULAR\",IF(Tabla1[TOTAL ASISTENCIAS]<48,\"RECURSAMIENTO\"))","v":"RECURSAMIENTO"},null,"Nota más baja",{"$f":"MIN(Tabla1[PROMEDIO])","v":5.333333333333333}]
[null,null,null,null,null,null,250106,"MORALES DIEZ SILVERIO",9,20,8,20,8,20,{"$f":"AVERAGE(Tabla1[[#This Row],[PARCIAL 1]],Tabla1[[#This Row],[PARCIAL 2]],Tabla1[[#This Row],[PARCIAL 3]])","v":8.3333333333333339},{"$f":"SUM(Tabla1[[#This Row],[ASISTENCIAS 1]],Tabla1[[#This Row],[ASISTENCIAS 2]],Tabla1[[#This Row],[ASISTENCIAS 3]])","v":60},{"$f":"IF(Tabla1[[#This Row],[PROMEDIO]]>6,\"APROBADO\",\"REPROBADO\")","v":"APROBADO"},{"$f":"IF(Tabla1[TOTAL ASISTENCIAS]>48,\"REGULAR\",IF(Tabla1[TOTAL ASISTENCIAS]<48,\"RECURSAMIENTO\"))","v":"REGULAR"},null,"Nota más repetida",{"$f":"_xlfn.MODE.SNGL(Tabla1[PROMEDIO])","v":8.6666666666666661}]
[null,null,null,null,null,null,250107,"NEVAREZ SORIANO PEDRO",6,19,5,15,5,12,{"$f":"AVERAGE(Tabla1[[#This Row],[PARCIAL 1]],Tabla1[[#This Row],[PARCIAL 2]],Tabla1[[#This Row],[PARCIAL 3]])","v":5.333333333333333},{"$f":"SUM(Tabla1[[#This Row],[ASISTENCIAS 1]],Tabla1[[#This Row],[ASISTENCIAS 2]],Tabla1[[#This Row],[ASISTENCIAS 3]])","v":46},{"$f":"IF(Tabla1[[#This Row],[PROMEDIO]]>6,\"APROBADO\",\"REPROBADO\")","v":"REPROBADO"},{"$f":"IF(Tabla1[TOTAL ASISTENCIAS]>48,\"REGULAR\",IF(Tabla1[TOTAL ASISTENCIAS]<48,\"RECURSAMIENTO\"))","v":"RECURSAMIENTO"}]
[null,null,null,null,null,null,250108,"QUIRARTE LARIOS OSCAR",8,20,9,20,9,20,{"$f":"AVERAGE(Tabla1[[#This Row],[PARCIAL 1]],Tabla1[[#This Row],[PARCIAL 2]],Tabla1[[#This Row],[PARCIAL 3]])","v":8.6666666666666661},{"$f":"SUM(Tabla1[[#This Row],[ASISTENCIAS 1]],Tabla1[[#This Row],[ASISTENCIAS 2]],Tabla1[[#This Row],[ASISTENCIAS 3]])","v":60},{"$f":"IF(Tabla1[[#This Row],[PROMEDIO]]>6,\"APROBADO\",\"REPROBADO\")","v":"APROBADO"},{"$f":"IF(Tabla1[TOTAL ASISTENCIAS]>48,\"REGULAR\",IF(Tabla1[TOTAL ASISTENCIAS]<48,\"RECURSAMIENTO\"))","v":"REGULAR"}]
[null,null,null,null,null,null,250109,"RÍOS RAMÍREZ RICARDO",8,20,7,18,8,20,{"$f":"AVERAGE(Tabla1[[#This Row],[PARCIAL 1]],Tabla1[[#This Row],[PARCIAL 2]],Tabla1[[#This Row],[PARCIAL 3]])","v":7.666666666666667},{"$f":"SUM(Tabla1[[#This Row],[ASISTENCIAS 1]],Tabla1[[#This Row],[ASISTENCIAS 2]],Tabla1[[#This Row],[ASISTENCIAS 3]])","v":58},{"$f":"IF(Tabla1[[#This Row],[PROMEDIO]]>6,\"APROBADO\",\"REPROBADO\")","v":"APROBADO"},{"$f":"IF(Tabla1[TOTAL ASISTENCIAS]>48,\"REGULAR\",IF(Tabla1[TOTAL ASISTENCIAS]<48,\"RECURSAMIENTO\"))","v":"REGULAR"}]
[null,null,null,null,null,null,250110,"RODARTE VARGAS HORTENCIA",5,14,5,15,6,20,{"$f":"AVERAGE(Tabla1[[#This Row],[PARCIAL 1]],Tabla1[[#This Row],[PARCIAL 2]],Tabla1[[#This Row],[PARCIAL 3]])","v":5.333333333333333},{"$f":"SUM(Tabla1[[#This Row],[ASISTENCIAS 1]],Tabla1[[#This Row],[ASISTENCIAS 2]],Tabla1[[#This Row],[ASISTENCIAS 3]])","v":49},{"$f":"IF(Tabla1[[#This Row],[PROMEDIO]]>6,\"APROBADO\",\"REPROBADO\")","v":"REPROBADO"},{"$f":"IF(Tabla1[TOTAL ASISTENCIAS]>48,\"REGULAR\",IF(Tabla1[TOTAL ASISTENCIAS]<48,\"RECURSAMIENTO\"))","v":"REGULAR"}]
[null,null,null,null,null,null,250111,"RUÍZ LANDEROS APOLONIO",9,20,8,20,9,20,{"$f":"AVERAGE(Tabla1[[#This Row],[PARCIAL 1]],Tabla1[[#This Row],[PARCIAL 2]],Tabla1[[#This Row],[PARCIAL 3]])","v":8.6666666666666661},{"$f":"SUM(Tabla1[[#This Row],[ASISTENCIAS 1]],Tabla1[[#This Row],[ASISTENCIAS 2]],Tabla1[[#This Row],[ASISTENCIAS 3]])","v":60},{"$f":"IF(Tabla1[[#This Row],[PROMEDIO]]>6,\"APROBADO\",\"REPROBADO\")","v":"APROBADO"},{"$f":"IF(Tabla1[TOTAL ASISTENCIAS]>48,\"REGULAR\",IF(Tabla1[TOTAL ASISTENCIAS]<48,\"RECURSAMIENTO\"))","v":"REGULAR"}]
[null,null,null,null,null,null,250112,"SAMANIEGO RUEDA ELEAZAR",8,20,10,20,9,20,{"$f":"AVERAGE(Tabla1[[#This Row],[PARCIAL 1]],Tabla1[[#This Row],[PARCIAL 2]],Tabla1[[#This Row],[PARCIAL 3]])","v":9},{"$f":"SUM(Tabla1[[#This Row],[ASISTENCIAS 1]],Tabla1[[#This Row],[ASISTENCIAS 2]],Tabla1[[#This Row],[ASISTENCIAS 3]])","v":60},{"$f":"IF(Tabla1[[#This Row],[PROMEDIO]]>6,\"APROBADO\",\"REPROBADO\")","v":"APROBADO"},{"$f":"IF(Tabla1[TOTAL ASISTENCIAS]>48,\"REGULAR\",IF(Tabla1[TOTAL ASISTENCIAS]<48,\"RECURSAMIENTO\"))","v":"REGULAR"}]
[null,null,null,null,null,null,250113,"SOLÍS MARTÍNEZ JAZMÍN",7,20,9,20,8,20,{"$f":"AVERAGE(Tabla1[[#This Row],[PARCIAL 1]],Tabla1[[#This Row],[PARCIAL 2]],Tabla1[[#This Row],[PARCIAL 3]])","v":8},{"$f":"SUM(Tabla1[[#This Row],[ASISTENCIAS 1]],Tabla1[[#This Row],[ASISTENCIAS 2]],Tabla1[[#This Row],[ASISTENCIAS 3]])","v":60},{"$f":"IF(Tabla1[[#This Row],[PROMEDIO]]>6,\"APROBADO\",\"REPROBADO\")","v":"APROBADO"},{"$f":"IF(Tabla1[TOTAL ASISTENCIAS]>48,\"REGULAR\",IF(Tabla1[TOTAL ASISTENCIAS]<48,\"RECURSAMIENTO\"))","v":"REGULAR"}]
[null,null,null,null,null,null,250114,"VENEGAS GARCÍA SAÚL",10,20,8,20,10,20,{"$f":"AVERAGE(Tabla1[[#This Row],[PARCIAL 1]],Tabla1[[#This Row],[PARCIAL 2]],Tabla1[[#This Row],[PARCIAL 3]])","v":9.3333333333333339},{"$f":"SUM(Tabla1[[#This Row],[ASISTENCIAS 1]],Tabla1[[#This Row],[ASISTENCIAS 2]],Tabla1[[#This Row],[ASISTENCIAS 3]])","v":60},{"$f":"IF(Tabla1[[#This Row],[PROMEDIO]]>6,\"APROBADO\",\"REPROBADO\")","v":"APROBADO"},{"$f":"IF(Tabla1[TOTAL ASISTENCIAS]>48,\"REGULAR\",IF(Tabla1[TOTAL ASISTENCIAS]<48,\"RECURSAMIENTO\"))","v":"REGULAR"}]
[]
[]
[null,null,null,null,null,null,null,null,null,null,null,null,null,"NOTA FINAL","APROBADO"]
[]
[null,null,null,null,null,null,null,null,null,null,null,null,null,"Etiquetas de fila"]
[null,null,null,null,null,null,null,null,null,null,null,null,null,"CENICEROS PÉREZ JACINTO"]
[null,null,null,null,null,null,null,null,null,null,null,null,null,"DÍAZ FLORES PAOLA"]
[null,null,null,null,null,null,null,null,null,null,null,null,null,"GARCÍA IRIGOYEN JOSÉ"]
[null,null,null,null,null,null,null,null,null,null,null,null,null,"JIMÉNEZ QUIROGA ROBERTO"]
[null,null,null,null,null,null,null,null,null,null,null,null,null,"MORALES DIEZ SILVERIO"]
[null,null,null,null,null,null,null,null,null,null,null,null,null,"QUIRARTE LARIOS OSCAR"]
[null,null,null,null,null,null,null,null,null,null,null,null,null,"RÍOS RAMÍREZ RICARDO"]
[null,null,null,null,null,null,null,null,null,null,null,null,null,"RUÍZ LANDEROS APOLONIO"]
[null,null,null,null,null,null,null,null,null,null,null,null,null,"SAMANIEGO RUEDA ELEAZAR"]
[null,null,null,null,null,null,null,null,null,null,null,null,null,"SOLÍS MARTÍNEZ JAZMÍN"]
[null,null,null,null,null,null,null,null,null,null,null,null,null,"VENEGAS GARCÍA SAÚL"]
[null,null,null,null,null,null,null,null,null,null,null,null,null,"Total general"]

{"sheet":"Lista Desplegable Validación","index":1,"n_rows":10,"n_cols":12,"rows_kept":10,"cut":false,"hidden":false,"merged":[]}
[]
[]
[]
[]
[]
[]
[]
[]
[]
[null,null,null,null,null,null,null,"NOMBRE","PARCIAL 1","PARCIAL 2","PARCIAL 3","NOTA FINAL"]

{"sheet":"Hoja3","index":2,"n_rows":6,"n_cols":5,"rows_kept":6,"cut":false,"hidden":false,"merged":[]}
[]
[]
[]
[]
[]
[null,"Especialidad","Grupo","Semestre","Turno"]